bitfinex-derivatives/quotes_SOLF0:USTF0_20251107
["timestamp","ask_amount","ask_price","bid_price","bid_amount"]
[1762492569665,0.04507396,157.54,157.51,3.28454419]
[1762492572167,3.08507396,157.54,157.51,0.04454419]
[1762492572362,3.08507396,157.54,157.43,3.18]
[1762492572571,3.04,157.54,157.43,3.18]
[1762492573371,0.040999,157.5,157.48,3.18]
[1762492574173,0.040999,157.5,157.49,3.18]
[1762492575578,0.040999,157.5,157.47,3.22195798]
[1762492575969,3.04,157.56,157.48,3.18]
[1762492576473,5.7169,157.52,157.46,3.18]
[1762492576665,8.7569,157.52,157.46,3.18]
[1762492576865,3.04,157.52,157.46,3.18]
[1762492577072,3.08643945,157.51,157.47,0.04196335]
[1762492577271,3.08325267,157.51,157.47,0.04554524]
[1762492577672,3.04,157.49,157.47,0.04554524]
[1762492579180,0.04325267,157.51,157.47,3.22554524]
[1762492580380,0.04325267,157.51,157.5,3.18]
[1762492580689,3.04,157.57,157.5,3.18]
[1762492581189,3.04,157.57,157.5,8.8972]
[1762492581375,3.04,157.54,157.47,3.18]
[1762492581578,5.7157,157.55,157.47,3.18]
[1762492581778,0.04010942,157.53,157.5,3.18]
[1762492583585,0.04010942,157.53,157.51,3.18]
[1762492583782,0.04010942,157.53,157.49,3.22577819]
[1762492588390,0.04010942,157.53,157.52,3.18]
[1762492588690,3.04,157.6,157.52,3.18]
[1762492588892,3.04,157.65,157.52,3.18]
[1762492589093,8.7529,157.63,157.52,3.18]
[1762492589683,0.04661291,157.59,157.56,3.22794336]
[1762492591084,0.04661291,157.59,157.56,8.94294336]
[1762492591391,0.04661291,157.59,157.57,3.18]
[1762492592100,0.04661291,157.59,157.58,8.8946]
[1762492592396,0.04661291,157.59,157.58,3.18]
[1762492593793,0.04661291,157.59,157.56,0.04794336]
[1762492593794,3.04,157.7,157.59,3.18]
[1762492594593,0.04164946,157.66,157.63,3.2210723]
[1762492598894,3.07,157.65,157.63,0.0410723]
[1762492599199,3.07,157.65,157.54,2.98]
[1762492599389,5.7134,157.62,157.54,2.98]
[1762492599587,3.07,157.63,157.54,2.98]
[1762492600185,0.0466847,157.6,157.57,0.0456479]
[1762492600393,3.1147083,157.6,157.57,0.0409203]
[1762492600897,0.0447083,157.6,157.57,3.0009203]
[1762492602289,3.1247083,157.6,157.57,0.0409203]
[1762492603188,5.7154,157.56,157.5,2.96]
[1762492603394,3.08,157.58,157.49,275.62222949]
[1762492604002,3.08,157.58,157.5,2.96]
[1762492604199,3.08,157.55,157.52,0.0437348]
[1762492604401,3.08,157.55,157.52,0.04802077]
[1762492604802,3.12111908,157.56,157.52,0.04802077]
[1762492605604,0.04111908,157.56,157.52,3.00802077]
[1762492606201,3.08,157.64,157.53,2.96]
[1762492606398,3.08,157.64,157.52,0.04802077]
[1762492606399,3.08,157.59,157.49,278.58222949]
[1762492607196,3.08,157.53,157.52,0.04470756]
[1762492607392,3.08,157.53,157.46,2.96]
[1762492607393,3.08,157.53,157.51,0.04442274]
[1762492607998,8.7967,157.52,157.51,0.04442274]
[1762492608803,0.04339032,157.54,157.51,3.00442274]
[1762492612410,0.04339032,157.54,157.51,8.72122274]
[1762492612707,0.04339032,157.54,157.52,2.96]
[1762492614109,0.04339032,157.54,157.51,0.04442274]
[1762492614499,0.04339032,157.54,157.51,3.00442274]
[1762492614905,0.04339032,157.54,157.51,0.04442274]
[1762492615608,3.12339032,157.54,157.51,0.04442274]
[1762492615804,8.83959032,157.54,157.51,0.04442274]
[1762492616206,3.08,157.53,157.51,0.04442274]
[1762492616508,8.7966,157.53,157.51,0.04442274]
[1762492617407,0.04339032,157.54,157.51,3.00442274]
[1762492618206,0.04339032,157.54,157.53,2.96]
[1762492620812,3.08,157.61,157.53,4.22]
[1762492621113,5.714,157.6,157.54,2.96]
[1762492621915,0.04653528,157.59,157.55,0.04686807]
[1762492622116,3.12653528,157.59,157.55,0.04686807]
[1762492623212,8.7951,157.57,157.55,0.04686807]
[1762492623410,3.08,157.56,157.55,0.04686807]
[1762492624212,3.08,157.56,157.47,2.96]
[1762492624512,43.62063562,157.63,157.5,2.96]
[1762492624513,3.08,157.6,157.5,2.96]
[1762492624714,3.08,157.64,157.5,2.96]
[1762492625014,3.08,157.64,157.54,5.7158]
[1762492625203,0.04448823,157.59,157.55,3.00150762]
[1762492627108,0.04448823,157.59,157.58,2.96]
[1762492628519,0.04448823,157.59,157.56,2.96]
[1762492629018,3.08,157.68,157.57,2.96]
[1762492629210,3.08,157.68,157.58,5.7143]
[1762492629419,3.08,157.68,157.59,2.96]
[1762492629917,3.08,157.63,157.62,0.04692414]
[1762492630711,8.8827,157.64,157.62,0.04692414]
[1762492631620,0.04311845,157.65,157.62,0.04692414]
[1762492632709,8.92531845,157.65,157.62,0.04692414]
[1762492633920,3.21311845,157.65,157.62,0.04692414]
[1762492634915,0.04311845,157.65,157.62,3.11692414]
[1762492635326,8.8796,157.72,157.63,3.07]
[1762492635619,3.17,157.75,157.66,3.07]
[1762492636215,8.8786,157.75,157.69,0.0440547]
[1762492636620,3.17,157.75,157.69,0.0440547]
[1762492637429,8.8786,157.75,157.69,0.0440547]
[1762492638016,8.8786,157.75,157.69,3.1140547]
[1762492638222,5.7077,157.77,157.69,3.1140547]
[1762492638527,8.8777,157.77,157.71,0.04470161]
[1762492638715,3.17,157.77,157.71,0.04470161]
[1762492638915,3.17,157.75,157.71,0.04470161]
[1762492639122,3.17,157.75,157.71,3.11390292]
[1762492640723,3.17,157.75,157.71,0.04390292]
[1762492641526,8.8786,157.75,157.71,0.04390292]
[1762492641725,8.8786,157.75,157.71,3.11390292]
[1762492642318,8.8789,157.74,157.71,0.04390292]
[1762492642725,3.17,157.74,157.71,0.04390292]
[1762492643234,3.17,157.75,157.71,3.11390292]
[1762492645130,3.17,157.75,157.71,0.04390292]
[1762492645525,3.17,157.72,157.71,0.04390292]
[1762492645830,3.17,157.72,157.7,0.04737923]
[1762492646028,3.17,157.72,157.69,0.04797596]
[1762492646528,3.17,157.7,157.69,0.04797596]
[1762492646719,3.17,157.7,157.68,0.0463582]
[1762492646920,5.7092,157.73,157.68,3.1163582]
[1762492647220,8.8792,157.73,157.68,3.1163582]
[1762492647925,3.17,157.76,157.68,3.1163582]
[1762492648125,3.17,157.76,157.7,0.04575201]
[1762492648431,3.17,157.72,157.71,0.04697389]
[1762492650031,3.17,157.72,157.64,3.07]
[1762492650032,5.7103,157.7,157.64,3.07]
[1762492650231,3.17,157.7,157.64,3.07]
[1762492650931,3.17,157.68,157.65,0.04247184]
[1762492651335,3.17,157.67,157.58,3.07]
[1762492651637,3.17,157.62,157.58,3.07]
[1762492652541,3.21412159,157.62,157.58,3.11714113]
[1762492653134,0.04412159,157.62,157.58,3.11714113]
[1762492655138,8.92742159,157.62,157.58,0.04714113]
[1762492655330,3.17,157.61,157.58,0.04714113]
[1762492656032,8.884,157.6,157.58,0.04714113]
[1762492656238,3.17,157.59,157.58,0.04714113]
[1762492660434,0.04412159,157.62,157.58,3.26714113]
[1762492661241,3.10412159,157.62,157.58,3.26714113]
[1762492661438,3.10412159,157.62,157.58,0.04714113]
[1762492661933,3.10412159,157.62,157.58,3.16714113]
[1762492662738,0.04412159,157.62,157.58,3.16714113]
[1762492663633,0.04412159,157.62,157.6,3.12]
[1762492663841,3.06,157.69,157.6,3.12]
[1762492664033,3.06,157.69,157.61,3.12]
[1762492664737,3.10064238,157.67,157.63,0.04319224]
[1762492664942,3.10064238,157.67,157.63,3.16215783]
[1762492665430,0.04064238,157.67,157.63,3.16215783]
[1762492666641,0.04064238,157.67,157.64,3.12]
[1762492667544,0.04064238,157.67,157.63,3.16215783]
[1762492668539,3.10064238,157.67,157.63,3.16215783]
[1762492669133,0.04064238,157.67,157.63,3.16215783]
[1762492669934,3.10064238,157.67,157.63,0.04215783]
[1762492670842,3.10064238,157.67,157.63,3.16215783]
[1762492672745,3.10064238,157.67,157.63,0.04215783]
[1762492673245,3.06,157.66,157.53,3.12]
[1762492673851,3.06,157.62,157.55,3.12]
[1762492674156,0.04270338,157.6,157.57,0.04451856]
[1762492675345,0.04270338,157.6,157.57,3.16451856]
[1762492679558,3.10270338,157.6,157.57,0.04451856]
[1762492680457,0.04270338,157.6,157.57,3.16451856]
[1762492681758,3.10270338,157.6,157.57,0.04451856]
[1762492682154,3.10270338,157.6,157.57,3.16451856]
[1762492682455,3.10270338,157.6,157.57,0.04451856]
[1762492683953,5.75670338,157.6,157.57,3.16451856]
[1762492684149,0.04270338,157.6,157.57,3.16451856]
[1762492684950,3.10270338,157.6,157.57,0.04451856]
[1762492689669,3.10270338,157.6,157.51,3.12]
[1762492689955,3.10270338,157.6,157.49,273.02810208]
[1762492690158,8.776,157.55,157.49,273.02810208]
[1762492690357,3.06,157.54,157.45,64.2]
[1762492690563,3.06,157.54,157.45,3.12]
[1762492690755,2.98,157.5,157.48,0.04615562]
[1762492691060,2.98,157.5,157.47,0.04793691]
[1762492691358,2.98,157.49,157.47,0.04793691]
[1762492693060,0.04334087,157.51,157.47,3.11793691]
[1762492693465,2.98,157.49,157.47,0.04793691]
[1762492695460,2.98,157.48,157.47,0.04793691]
[1762492696067,2.98,157.45,157.38,5.7217]
[1762492696256,2.98,157.45,157.35,3.07]
[1762492696663,5.7199,157.44,157.35,8.7926]
[1762492696963,0.04259715,157.41,157.38,0.04411746]
[1762492697158,2.98,157.4,157.38,0.04411746]
[1762492697758,3.02259715,157.41,157.38,0.04411746]
[1762492698566,2.98,157.4,157.38,0.04411746]
[1762492698766,0.04259715,157.41,157.38,0.04411746]
[1762492699261,3.02259715,157.41,157.38,0.04411746]
[1762492699461,0.04259715,157.41,157.38,3.11411746]
[1762492699666,0.04259715,157.41,157.38,8.83561746]
[1762492699863,2.98,157.47,157.39,3.07]
[1762492700860,2.98,157.47,157.35,53.3]
[1762492700861,0.04650595,157.45,157.42,3.07]
[1762492701970,0.04650595,157.45,157.42,4.35]
[1762492702167,2.98,157.51,157.43,3.07]
[1762492703157,3.02048363,157.49,157.45,0.04618822]
[1762492703364,3.02291794,157.49,157.45,0.04182397]
[1762492703969,2.98,157.47,157.45,0.04182397]
[1762492704760,2.98,157.48,157.45,0.04182397]
[1762492705873,5.76081794,157.49,157.45,3.11182397]
[1762492705874,0.04291794,157.49,157.45,3.11182397]
[1762492709573,0.04291794,157.49,157.46,5.7189]
[1762492709768,0.04291794,157.49,157.47,3.07]
[1762492711374,0.04291794,157.49,157.47,8.7883]
[1762492711574,2.98,157.55,157.48,3.07]
[1762492711973,2.98,157.55,157.49,8.7876]
[1762492712183,2.98,157.59,157.5,3.07]
[1762492712580,0.04805653,157.56,157.53,3.11733341]
[1762492716079,3.02805653,157.56,157.53,0.04733341]
[1762492716670,0.04805653,157.56,157.53,3.11733341]
[1762492717076,3.02805653,157.56,157.53,0.04733341]
[1762492718174,3.2,157.55,157.53,0.04733341]
[1762492719171,8.9159,157.55,157.53,0.04733341]
[1762492719377,3.2,157.54,157.53,0.04733341]
[1762492723186,3.12,157.53,157.43,3.06]
[1762492724186,0.04042241,157.5,157.47,3.06]
[1762492724382,0.04843089,157.5,157.47,3.10753603]
[1762492725483,3.16843089,157.5,157.47,0.04753603]
[1762492726390,0.04843089,157.5,157.47,3.10753603]
[1762492726589,3.12,157.54,157.48,3.06]
[1762492727186,8.835,157.57,157.5,3.06]
[1762492727390,3.12,157.57,157.5,3.06]
[1762492727594,0.04265434,157.55,157.52,0.04536156]
[1762492727793,0.04265434,157.55,157.52,3.10536156]
[1762492731090,0.04265434,157.55,157.53,3.06]
[1762492734083,0.04265434,157.55,157.53,8.776]
[1762492734297,3.12,157.63,157.54,3.06]
[1762492734994,3.12,157.61,157.54,3.06]
[1762492735395,3.12,157.61,157.56,0.04785567]
[1762492735993,3.12,157.59,157.56,0.04785567]
[1762492736194,3.12,157.59,157.56,0.04628231]
[1762492740393,3.12,157.62,157.56,3.10628231]
[1762492740600,3.12,157.62,157.57,0.04845679]
[1762492741397,3.12,157.64,157.57,3.10845679]
[1762492742095,8.8315,157.67,157.6,3.06]
[1762492742299,3.12,157.66,157.62,0.04478367]
[1762492742501,3.12,157.66,157.62,0.04536949]
[1762492743485,7.24945453,157.73,157.62,3.10536949]
[1762492743695,3.12,157.71,157.66,0.04830574]
[1762492743890,3.12,157.71,157.67,0.0416552]
[1762492744089,8.83,157.71,157.67,0.0416552]
[1762492744499,3.12,157.7,157.67,0.0416552]
[1762492744901,3.12,157.73,157.67,3.1016552]
[1762492746198,3.12,157.77,157.67,3.1016552]
[1762492746399,1.10343078,157.82,157.71,3.06]
[1762492746400,3.12,157.8,157.71,3.06]
[1762492746700,3.12,157.77,157.74,0.04559532]
[1762492747005,3.12,157.77,157.74,0.04301306]
[1762492748694,3.12,157.77,157.59,62.0]
[1762492748695,3.12,157.75,157.65,3.06]
[1762492748904,3.12,157.75,157.59,3.06]
[1762492749203,3.12,157.66,157.59,3.06]
[1762492749707,7.24945453,157.73,157.61,0.04044037]
[1762492749708,0.04709535,157.64,157.61,0.04044037]
[1762492750001,0.04052904,157.64,157.61,3.10543667]
[1762492750300,0.04052904,157.64,157.61,0.04543667]
[1762492750500,3.16052904,157.64,157.61,0.04543667]
[1762492751698,3.08,157.62,157.61,0.04543667]
[1762492751899,3.08,157.62,157.51,94.38]
[1762492752096,5.7141,157.6,157.52,3.0]
[1762492752304,3.08,157.59,157.52,3.0]
[1762492752899,0.03996666,157.57,157.54,0.04633549]
[1762492753297,3.11996666,157.57,157.54,0.04633549]
[1762492754108,0.03996666,157.57,157.54,3.04633549]
[1762492754607,3.08,157.64,157.55,3.0]
[1762492754805,3.08,157.64,157.56,8.7149]
[1762492755005,3.08,157.64,157.57,3.0]
[1762492755198,5.7113,157.67,157.57,3.0]
[1762492755508,3.08,157.66,157.58,8.7143]
[1762492755705,3.08,157.63,157.6,0.04146103]
[1762492755897,3.08,157.63,157.6,0.04341582]
[1762492757708,3.08,157.62,157.6,0.04341582]
[1762492758413,3.08,157.61,157.6,0.04341582]
[1762492759114,3.08,157.63,157.6,0.04341582]
[1762492760913,3.08,157.63,157.53,5.7163]
[1762492761210,3.08,157.63,157.52,3.0]
[1762492761905,4.25504208,157.65,157.48,4.25504208]
[1762492761906,3.08,157.58,157.49,3.0]
[1762492762210,0.04532952,157.55,157.52,0.04757466]
[1762492762915,0.04532952,157.55,157.52,3.04757466]
[1762492764310,0.04532952,157.55,157.53,3.0]
[1762492764508,0.04532952,157.55,157.53,4.26]
[1762492764707,8.7925,157.64,157.55,3.0]
[1762492765707,0.04308488,157.61,157.58,0.04694348]
[1762492766217,3.12308488,157.61,157.58,0.04694348]
[1762492767920,0.04308488,157.61,157.58,0.04694348]
[1762492769015,3.12308488,157.61,157.58,0.04694348]
[1762492771927,0.04308488,157.61,157.58,3.04694348]
[1762492772926,0.04308488,157.61,157.59,5.7139]
[1762492773121,0.04308488,157.61,157.59,8.7139]
[1762492773323,0.04308488,157.61,157.59,3.0]
[1762492776528,0.04308488,157.61,157.59,8.714]
[1762492776928,0.04308488,157.61,157.6,3.0]
[1762492779230,3.12308488,157.61,157.58,0.04694348]
[1762492780335,0.04308488,157.61,157.58,2.98694348]
[1762492781336,0.04308488,157.61,157.58,8.70124348]
[1762492781934,0.04308488,157.61,157.59,8.894]
[1762492782129,0.04308488,157.61,157.58,3.22694348]
[1762492782825,0.04308488,157.61,157.58,8.94134348]
[1762492783039,0.04308488,157.61,157.59,3.18]
[1762492787234,0.04308488,157.61,157.59,8.894]
[1762492787434,4.85429629,157.68,157.6,3.18]
[1762492787943,3.04,157.66,157.62,3.18]
[1762492788741,3.04,157.65,157.62,0.04388946]
[1762492789641,8.7522,157.65,157.62,0.04388946]
[1762492789943,3.04,157.64,157.62,0.04388946]
[1762492790845,3.04,157.63,157.62,0.04388946]
[1762492792343,3.04,157.65,157.62,0.04388946]
[1762492793048,3.04,157.64,157.62,0.04388946]
[1762492793542,3.04,157.63,157.54,3.18]
[1762492793738,1.81429629,157.59,157.52,7.71932503]
[1762492793943,5.7151,157.57,157.51,4.99429629]
[1762492794247,3.04,157.56,157.49,1.81429629]
[1762492794440,3.04,157.54,157.48,64.16]
[1762492794637,3.04,157.52,157.49,0.04308152]
[1762492795542,0.04283913,157.53,157.49,3.22308152]
[1762492795942,0.04283913,157.53,157.51,3.18]
[1762492796842,0.04283913,157.53,157.49,5.03737781]
[1762492797843,0.04283913,157.53,157.5,3.18]
[1762492799947,3.08283913,157.53,157.49,10.75497781]
[1762492801446,0.04283913,157.53,157.51,3.18]
[1762492801953,3.08283913,157.53,157.49,3.22308152]
[1762492802148,3.04,157.52,157.49,0.04308152]
[1762492802451,3.04,157.5,157.42,3.18]
[1762492802654,3.04,157.49,157.42,3.18]
[1762492802950,3.04,157.48,157.42,3.18]
[1762492803650,3.08146026,157.47,157.43,0.04153904]
[1762492803861,3.08146026,157.47,157.43,3.22153904]
[1762492804055,0.04146026,157.47,157.43,5.03583533]
[1762492804354,0.04146026,157.47,157.44,3.18]
[1762492805260,3.04,157.51,157.45,3.18]
[1762492805459,3.04,157.51,157.46,8.8987]
[1762492805751,3.04,157.51,157.43,3.18]
[1762492806153,3.08635681,157.49,157.45,0.04678512]
[1762492806355,0.04635681,157.49,157.46,3.18]
[1762492808864,3.08635681,157.49,157.45,3.22745745]
[1762492809758,3.08635681,157.49,157.45,0.04745745]
[1762492811357,8.7889,157.46,157.45,0.04745745]
[1762492811558,3.07,157.45,157.35,3.14]
[1762492812464,3.11679721,157.42,157.38,0.04282371]
[1762492812762,3.11551751,157.42,157.38,3.18389231]
[1762492812962,3.11551751,157.42,157.38,0.04389231]
[1762492813660,8.83621751,157.42,157.38,0.04389231]
[1762492813864,3.07,157.41,157.38,0.04389231]
[1762492814870,3.07,157.39,157.38,0.04389231]
[1762492817761,5.7213,157.4,157.38,0.04389231]
[1762492818062,3.07,157.39,157.38,0.04389231]
[1762492819071,3.07,157.37,157.31,67.34]
[1762492820066,3.11730872,157.36,157.32,0.04730772]
[1762492820665,0.04730872,157.36,157.32,3.18730772]
[1762492821972,0.04730872,157.36,157.32,8.91110772]
[1762492822172,0.04730872,157.36,157.33,3.14]
[1762492823571,3.11730872,157.36,157.32,0.04730772]
[1762492823981,3.11730872,157.36,157.32,3.18730772]
[1762492824880,3.11730872,157.36,157.32,0.04730772]
[1762492828880,3.07,157.33,157.26,3.14]
[1762492830182,0.04187201,157.31,157.28,3.18846636]
[1762492830481,3.11187201,157.31,157.28,0.04846636]
[1762492832088,0.04187201,157.31,157.28,3.18846636]
[1762492833386,3.11187201,157.31,157.28,0.04846636]
[1762492833793,8.7954,157.29,157.21,3.14]
[1762492833987,3.07,157.28,157.21,3.14]
[1762492834292,3.07,157.25,157.18,3.14]
[1762492834890,3.11248094,157.23,157.2,0.04845438]
[1762492835089,3.11256031,157.23,157.2,0.04192792]
[1762492838491,0.04256031,157.23,157.2,3.22192792]
[1762492838894,0.04256031,157.23,157.2,0.04192792]
[1762492839099,0.04256031,157.23,157.2,3.22192792]
[1762492839893,3.11,157.29,157.21,3.18]
[1762492840597,3.24,157.38,157.24,2.95]
[1762492840990,8.9647,157.3,157.29,0.04205854]
[1762492841191,3.24,157.29,157.28,0.04622577]
[1762492841385,3.24,157.29,157.27,0.04475262]
[1762492841889,3.24,157.28,157.17,2.95]
[1762492842894,0.04618876,157.24,157.21,0.04041821]
[1762492843089,3.2817212,157.24,157.21,0.04754676]
[1762492844694,0.0417212,157.24,157.21,2.99754676]
[1762492845897,0.0417212,157.24,157.21,8.72514676]
[1762492846093,0.0417212,157.24,157.22,2.95]
[1762492849510,3.2817212,157.24,157.21,0.04754676]
[1762492850401,0.0417212,157.24,157.21,2.99754676]
[1762492851306,0.0417212,157.24,157.23,2.95]
[1762492852903,3.24,157.31,157.23,2.95]
[1762492853596,3.24,157.31,157.25,5.7265]
[1762492853800,3.28380521,157.3,157.26,0.04861918]
[1762492854705,0.04380521,157.3,157.26,2.99861918]
[1762492854906,0.04380521,157.3,157.27,2.95]
[1762492858016,0.04380521,157.3,157.28,5.7251]
[1762492858215,0.04380521,157.3,157.29,2.95]
[1762492861109,0.04380521,157.3,157.27,5.7256]
[1762492861110,0.04380521,157.3,157.28,2.95]
[1762492861313,3.28380521,157.3,157.26,2.99861918]
[1762492861513,0.04380521,157.3,157.26,2.99861918]
[1762492863519,3.28380521,157.3,157.26,0.04861918]
[1762492863811,0.04380521,157.3,157.26,2.99861918]
[1762492864015,0.04380521,157.3,157.26,8.72461918]
[1762492864204,0.04380521,157.3,157.27,2.95]
[1762492866418,3.28380521,157.3,157.26,2.99861918]
[1762492867315,0.04380521,157.3,157.26,2.99861918]
[1762492869018,0.04380521,157.3,157.26,8.72461918]
[1762492869221,0.04380521,157.3,157.27,2.95]
[1762492870413,0.04380521,157.3,157.26,0.04861918]
[1762492870414,3.28380521,157.3,157.26,0.04861918]
[1762492870815,3.28380521,157.3,157.26,3.03861918]
[1762492872320,3.28380521,157.3,157.26,0.04861918]
[1762492872619,3.11,157.28,157.2,2.99]
[1762492872821,3.11,157.24,157.2,2.99]
[1762492873613,3.15796334,157.24,157.2,3.0366786]
[1762492873823,0.04796334,157.24,157.2,3.0366786]
[1762492878318,3.15796334,157.24,157.2,3.0366786]
[1762492878525,3.15796334,157.24,157.2,0.0466786]
[1762492879024,3.11,157.23,157.2,0.0466786]
[1762492879222,3.11,157.21,157.2,0.0466786]
[1762492881222,3.11,157.21,157.14,2.99]
[1762492882025,0.04289552,157.19,157.16,0.04507487]
[1762492882224,3.15289552,157.19,157.16,0.04507487]
[1762492884423,3.15289552,157.19,157.16,3.03507487]
[1762492885323,0.04289552,157.19,157.16,3.03507487]
[1762492886826,0.04289552,157.19,157.17,1.82302824]
[1762492887031,0.04289552,157.19,157.18,2.99]
[1762492887222,0.04289552,157.19,157.16,3.03507487]
[1762492887423,3.15289552,157.19,157.16,0.04507487]
[1762492888626,3.11,157.18,157.16,0.04507487]
[1762492889033,8.8393,157.18,157.16,0.04507487]
[1762492889231,3.11,157.17,157.16,0.04507487]
[1762492891327,3.15289552,157.19,157.16,0.04507487]
[1762492891533,0.04289552,157.19,157.16,3.03507487]
[1762492892623,0.04289552,157.19,157.16,4.85810311]
[1762492892934,0.04289552,157.19,157.18,4.81302824]
[1762492893136,3.11,157.23,157.16,0.04507487]
[1762492893429,3.11,157.21,157.15,2.99]
[1762492893736,8.8381,157.21,157.15,2.99]
[1762492894236,3.15161128,157.2,157.16,3.03428947]
[1762492894930,8.88021128,157.2,157.16,3.03428947]
[1762492895433,8.88021128,157.2,157.16,0.04428947]
[1762492895434,3.11,157.19,157.16,0.04428947]
[1762492896128,3.11,157.17,157.16,0.04428947]
[1762492896333,3.11,157.17,157.11,1.82302824]
[1762492897237,8.8396,157.17,157.1,4.81302824]
[1762492897429,8.8396,157.17,157.12,3.03086896]
[1762492897430,3.15892455,157.16,157.12,3.03086896]
[1762492898536,8.88892455,157.16,157.12,3.03086896]
[1762492899137,8.8903,157.15,157.12,3.03086896]
[1762492899640,8.8903,157.15,157.12,0.04086896]
[1762492899839,3.16,157.15,157.12,3.23086896]
[1762492900033,0.04892455,157.16,157.12,3.23086896]
[1762492900335,0.04892455,157.16,157.14,3.19]
[1762492902436,3.14892455,157.16,157.12,3.15086896]
[1762492902740,8.87902455,157.16,157.12,0.04086896]
[1762492902936,8.87902455,157.16,157.05,3.11]
[1762492902937,3.1,157.15,157.05,3.11]
[1762492903840,5.7315,157.12,157.05,3.11]
[1762492904030,0.04643616,157.1,157.07,3.15059871]
[1762492905037,3.1,157.16,157.09,3.11]
[1762492905440,3.1,157.16,157.05,3.11]
[1762492906140,3.14133354,157.12,157.09,0.04538126]
[1762492906340,3.14623114,157.12,157.09,0.04059154]
[1762492906943,0.04623114,157.12,157.09,3.15059154]
[1762492910351,3.1,157.11,157.09,0.04059154]
[1762492912550,3.1,157.1,157.09,0.04059154]
[1762492913053,3.1,157.11,157.09,0.04059154]
[1762492913949,8.832,157.1,157.09,0.04059154]
[1762492914952,3.14623114,157.12,157.09,0.04059154]
[1762492916948,3.1,157.1,157.09,0.04059154]
[1762492918360,0.04623114,157.12,157.09,0.04059154]
[1762492918361,3.14623114,157.12,157.09,0.04059154]
[1762492919051,3.1,157.11,157.09,0.04059154]
[1762492921061,8.8318,157.11,157.09,0.04059154]
[1762492921262,3.1,157.1,157.09,0.04059154]
[1762492924049,3.14623114,157.12,157.09,3.15059154]
[1762492924260,3.14623114,157.12,157.09,0.04059154]
[1762492924457,8.8317,157.11,157.09,0.04059154]
[1762492924658,3.1,157.1,157.09,0.04059154]
[1762492927058,8.8318,157.11,157.09,0.04059154]
[1762492927258,3.1,157.1,157.09,0.04059154]
[1762492927964,0.04623114,157.12,157.09,3.15059154]
[1762492928862,0.04623114,157.12,157.09,8.88289154]
[1762492929052,3.14623114,157.12,157.09,0.04059154]
[1762492929959,3.1,157.1,157.09,0.04059154]
[1762492931066,3.06,157.07,156.99,3.05]
[1762492931266,4.88680691,157.06,156.99,3.05]
[1762492932068,3.10334066,157.04,157.01,0.04512837]
[1762492932965,3.06,157.02,157.01,0.04512837]
[1762492934869,3.06,157.01,156.94,4.87680691]
[1762492935663,3.06,156.99,156.94,3.05]
[1762492935874,0.04649873,156.98,156.95,0.04584778]
[1762492936163,3.10649873,156.98,156.95,0.04584778]
[1762492936860,5.7372,156.97,156.95,0.04584778]
[1762492937065,3.06,156.96,156.95,0.04584778]
[1762492938271,3.10649873,156.98,156.95,0.04584778]
[1762492938472,0.04649873,156.98,156.95,3.09584778]
[1762492938868,3.10649873,156.98,156.95,3.09584778]
[1762492939064,3.10649873,156.98,156.95,0.04584778]
[1762492941181,3.10649873,156.98,156.95,3.09584778]
[1762492941380,0.04649873,156.98,156.95,3.09584778]
[1762492942371,0.04649873,156.98,156.95,4.37584778]
[1762492942571,8.7945,157.04,156.96,3.05]
[1762492942779,3.06,157.03,156.92,3.05]
[1762492943181,3.06,157.01,156.93,8.7882]
[1762492943589,3.10162705,156.99,156.95,3.09481709]
[1762492944488,0.04162705,156.99,156.95,3.09481709]
[1762492945793,3.10162705,156.99,156.95,3.09481709]
[1762492946781,0.04162705,156.99,156.95,3.09481709]
[1762492947887,0.04162705,156.99,156.95,8.83211709]
[1762492948093,0.04162705,156.99,156.96,3.05]
[1762492948692,0.04162705,156.99,156.96,8.7869]